fUST/lending_fUST_20250415
["ID","MTS","AMOUNT","RATE_DAILY","PERIOD"]
[358085822,1744697447230,-500.0,0.00026719,2]
[358085823,1744697447240,-493.99705109,0.00026719,2]
[358085824,1744697447250,-500.0,0.00026719,2]
[358085825,1744697447260,-500.0,0.00026719,2]
[358085826,1744697447269,-500.0,0.00026719,2]
[358085827,1744697447280,-500.0,0.00026719,2]
[358085828,1744697447291,-500.0,0.00026719,2]
[358085829,1744697447301,-500.0,0.00026719,2]
[358085830,1744697447311,-500.0,0.00026719,2]
[358085831,1744697447322,-500.0,0.00026719,2]
[358085832,1744697447332,-500.0,0.00026719,2]
[358085833,1744697447342,-500.0,0.00026719,2]
[358085834,1744697447352,-500.0,0.00026719,2]
[358085835,1744697447362,-500.0,0.00026719,2]
[358085836,1744697447372,-500.0,0.00026719,2]
[358085837,1744697447383,-500.0,0.00026719,2]
[358085838,1744697447393,-500.0,0.00026719,2]
[358085839,1744697447403,-350.0,0.00026719,2]
[358085840,1744697447413,-500.0,0.00026719,2]
[358085841,1744697447423,-500.0,0.00026719,2]
[358085842,1744697447433,-500.0,0.00026719,2]
[358085843,1744697447442,-500.0,0.00026719,2]
[358085844,1744697447452,-500.0,0.00026719,2]
[358085845,1744697447462,-500.0,0.00026719,2]
[358085846,1744697447472,-500.0,0.00026719,2]
[358085847,1744697447482,-500.0,0.00026719,2]
[358085848,1744697447492,-500.0,0.00026719,2]
[358085849,1744697447503,-500.0,0.00026719,2]
[358085850,1744697447513,-500.0,0.00026719,2]
[358085851,1744697447523,-500.0,0.00026719,2]
[358085852,1744697447532,-500.0,0.00026719,2]
[358085853,1744697447542,-295.53116375,0.00026719,2]
[358085854,1744697447552,-500.0,0.00026719,2]
[358085855,1744697447562,-500.0,0.00026719,2]
[358085856,1744697447571,-500.0,0.00026719,2]
[358085857,1744697447581,-500.0,0.00026719,2]
[358085858,1744697447591,-500.0,0.00026719,2]
[358085859,1744697447601,-500.0,0.00026719,2]
[358085860,1744697447611,-500.0,0.00026719,2]
[358085861,1744697447622,-500.0,0.00026719,2]
[358085862,1744697447632,-500.0,0.00026719,2]
[358085863,1744697447642,-500.0,0.00026719,2]
[358085864,1744697447652,-500.0,0.00026719,2]
[358085865,1744697447662,-500.0,0.00026719,2]
[358085866,1744697447672,-500.0,0.00026719,2]
[358085867,1744697447682,-500.0,0.00026719,2]
[358085868,1744697447693,-500.0,0.00026719,2]
[358085869,1744697447706,-500.0,0.00026719,2]
[358085870,1744697447716,-500.0,0.00026719,2]
[358085871,1744697447727,-500.0,0.00026719,2]
[358085872,1744697447736,-300.94728562,0.00026719,2]
[358085873,1744697447747,-500.0,0.00026719,2]
[358085874,1744697447757,-500.0,0.00026719,2]
[358085875,1744697447766,-500.0,0.00026719,2]
[358085876,1744697447777,-500.0,0.00026719,2]
[358085877,1744697447787,-707.28,0.00026719,2]
[358085878,1744697447797,-707.28,0.00026719,2]
[358085879,1744697447807,-13711.54650804,0.0002672,2]
[358085880,1744697447817,-281.46735676,0.0002672,3]
[358085881,1744697447829,-483.84463417,0.0002672,2]
[358085882,1744697447840,-1868.55,0.0002672,2]
[358085883,1744697447850,-2258.18,0.0002672,2]
[358085884,1744697447861,-2101.67,0.0002672,2]
[358085885,1744697447872,-500.0,0.0002672,2]
[358085886,1744697447882,-1661.55,0.0002672,2]
[358085887,1744697447892,-500.0,0.0002672,2]
[358085888,1744697447902,-500.0,0.0002672,2]
[358085889,1744697447912,-500.0,0.0002672,2]
[358085890,1744697447923,-591.63,0.0002672,2]
[358085891,1744697447933,-500.0,0.0002672,2]
[358085892,1744697447943,-500.0,0.0002672,2]
[358085893,1744697447953,-1337.27,0.0002672,2]
[358085894,1744697447973,-500.0,0.0002672,2]
[358085895,1744697447986,-886.61,0.0002672,2]
[358085896,1744697447997,-500.0,0.0002672,2]
[358085897,1744697448009,-500.0,0.0002672,2]
[358085898,1744697448020,-500.0,0.0002672,2]
[358085899,1744697448030,-634.04,0.0002672,2]
[358085900,1744697448042,-618.51,0.0002672,2]
[358085901,1744697448052,-634.04,0.0002672,2]
[358085902,1744697448063,-500.0,0.0002672,2]
[358085903,1744697448074,-500.0,0.0002672,2]
[358085904,1744697448085,-701.3,0.0002672,2]
[358085905,1744697448095,-500.0,0.0002672,2]
[358085906,1744697448106,-500.0,0.0002672,2]
[358085907,1744697448117,-944.07495344,0.0002672,2]
[358085908,1744697448137,-258.51504656,0.0002672,2]
[358085909,1744697448149,-500.0,0.0002672,2]
[358085910,1744697448160,-500.0,0.0002672,2]
[358085911,1744697448170,-2244.91,0.0002672,2]
[358085912,1744697448181,-500.0,0.0002672,2]
[358085913,1744697448191,-2534.91,0.0002672,2]
[358085914,1744697448201,-577.3,0.0002672,2]
[358085915,1744697448212,-847.06,0.0002672,2]
[358085916,1744697448223,-616.70982817,0.0002672,2]
[358085917,1744697448236,-840.29017183,0.0002672,2]
[358085918,1744697448246,-500.0,0.0002672,2]
[358085919,1744697448257,-500.0,0.0002672,2]
[358085920,1744697448267,-500.0,0.0002672,2]
[358085921,1744697448278,-509.44976662,0.0002672,2]
[358085922,1744697448289,-500.0,0.0002672,2]
[358085923,1744697448299,-1898.59,0.0002672,2]
[358085924,1744697448309,-500.0,0.0002672,2]
[358085925,1744697448320,-213.89647987,0.00026728,6]
[358085926,1744697449991,-212.57211159,0.00025153,2]
[358085929,1744697584337,-199.2510479,0.00024901,2]
[358085932,1744697902524,-188.92932071,0.0002,2]
[358085934,1744698015176,-255.04334378,0.000198,2]
[358085935,1744698123620,4869.07,0.0001801,2]
[358085936,1744698123941,-892.14251423,0.000198,2]
[358085979,1744698523877,207.77486481,0.00016,2]
[358086372,1744698637822,-198.00097541,0.00018524,2]
[358086374,1744698637832,-174.67865851,0.000189,2]
[358086376,1744698637843,-284.02172136,0.00019977,2]
[358086384,1744698637905,-610.55056751,0.00019977,2]
[358086386,1744698637915,-629.52826409,0.00023,2]
[358086388,1744698637924,-174.67865851,0.000239,2]
[358086390,1744698637934,-1960.95958032,0.00025,15]
[358086392,1744698637943,-2161.97581488,0.00025036,2]
[358086395,1744698637953,-332.231942,0.0002505,2]
[358086397,1744698637962,-2105.52615677,0.00025052,2]
[358086399,1744698637971,-332.231942,0.00025119,2]
[358086401,1744698637980,-886.91705941,0.00025128,2]
[358086402,1744698637990,-23664.42141471,0.00025128,2]
[358086404,1744698637999,-300.0,0.00025134,2]
[358086406,1744698638010,-500.0,0.00025135,2]
[358086407,1744698638019,-500.0,0.00025135,2]
[358086408,1744698638304,-500.0,0.00025135,2]
[358086409,1744698638327,-500.0,0.00025135,2]
[358086410,1744698638337,-501.19580016,0.00025135,2]
[358086411,1744698638346,-500.0,0.00025135,2]
[358086412,1744698638355,-500.0,0.00025135,2]
[358086413,1744698638365,-861.13,0.00025135,2]
[358086414,1744698638374,-500.0,0.00025135,2]
[358086415,1744698638383,-500.0,0.00025135,2]
[358086416,1744698638393,-502.22000041,0.00025135,2]
[358086417,1744698638404,-500.0,0.00025135,2]
[358086418,1744698638414,-156.81,0.00025135,2]
[358086419,1744698638425,-6696.43,0.00025136,2]
[358086420,1744698638435,-500.0,0.00025136,2]
[358086421,1744698638446,-500.0,0.00025136,2]
[358086422,1744698638455,-500.0,0.00025136,2]
[358086423,1744698638466,-825.24,0.00025136,2]
[358086424,1744698638475,-500.0,0.00025136,2]
[358086425,1744698638485,-500.0,0.00025136,2]
[358086426,1744698638499,-500.0,0.00025136,2]
[358086427,1744698638511,-1142.34,0.00025136,2]
[358086428,1744698638523,-5255.88,0.00025136,2]
[358086429,1744698638532,-2036.84,0.00025136,2]
[358086430,1744698638541,-575.28,0.00025136,2]
[358086431,1744698638551,-500.0,0.00025136,2]
[358086432,1744698638560,-500.0,0.00025136,2]
[358086433,1744698638570,-15259.15,0.00025136,2]
[358086434,1744698638579,-500.0,0.00025136,2]
[358086435,1744698638589,-500.0,0.00025136,2]
[358086436,1744698638598,-488.41349171,0.00025136,2]
[358086437,1744698638607,-500.0,0.00025136,2]
[358086438,1744698638616,-3605.42,0.00025136,2]
[358086439,1744698638626,-533.93,0.00025136,2]
[358086440,1744698638635,-2396.15,0.00025136,2]
[358086441,1744698638644,-1854.96,0.00025137,2]
[358086442,1744698638654,-505.46914324,0.00025137,2]
[358086443,1744698638664,-2132.33,0.00025137,2]
[358086444,1744698638674,-500.0,0.00025137,2]
[358086445,1744698638683,-500.0,0.00025137,2]
[358086446,1744698638692,-2164.09,0.00025137,2]
[358086447,1744698638701,-909.68,0.00025137,2]
[358086448,1744698638710,-589.4,0.00025137,2]
[358086449,1744698638720,-500.0,0.00025137,2]
[358086450,1744698638729,-500.0,0.00025137,2]
[358086451,1744698638738,-500.0,0.00025137,2]
[358086452,1744698638747,-389.11155653,0.00025137,2]
[358086476,1744698643267,-500.0,0.00025135,2]
[358086477,1744698643277,-60.21934862,0.00025135,2]
[358086594,1744699831943,-427.63,0.00023932,2]
[358086612,1744699832122,-1464.09883802,0.00023932,2]
[358086614,1744699832133,-151.0,0.00023986,2]
[358086616,1744699832142,-151.0,0.00023986,2]
[358086618,1744699832152,-151.0,0.00023986,2]
[358086620,1744699832161,-151.0,0.00023986,2]
[358086622,1744699832171,-151.0,0.00023986,2]
[358086624,1744699832180,-151.0,0.00023986,2]
[358086626,1744699832189,-151.0,0.00023986,2]
[358086628,1744699832200,-151.0,0.00023986,2]
[358086629,1744699832209,-151.0,0.00023986,2]
[358086630,1744699832219,-151.0,0.00023986,2]
[358086631,1744699832228,-151.0,0.00023986,2]
[358086632,1744699832238,-151.0,0.00023986,2]
[358086633,1744699832247,-151.0,0.00023986,2]
[358086634,1744699832257,-151.0,0.00023986,2]
[358086635,1744699832267,-151.0,0.00023986,2]
[358086636,1744699832276,-179.18894328,0.00023986,2]
[358086637,1744699832286,-300.0,0.00023998,2]
[358086638,1744699832296,-300.0,0.00023999,2]
[358086639,1744699832305,-4443.58223351,0.00023999,2]
[358086645,1744699837966,-207.4,0.00023986,2]
[358086647,1744699837976,-3556.41776649,0.00023999,2]
[358086649,1744699837986,-6855.77325402,0.00024,2]
[358086651,1744699837995,-732.54487691,0.00024,3]
[358086653,1744699838004,-10106.53071679,0.00024,2]
[358086891,1744699840434,-678.67393402,0.00024,2]
[358087014,1744699844773,-1454.69999998,0.00024,2]
[358087333,1744700043143,-237.51041023,0.00023899,2]
[358087334,1744700044974,-16.55703357,0.00023899,2]
[358087335,1744700045000,-146.51480145,0.00023931,2]
[358087336,1744700050315,-250.0,0.00023931,2]
[358087337,1744700063143,-238.29763433,0.00023931,2]
[358087385,1744701032164,-300.0,0.00023172,2]
[358087386,1744701032175,-300.0,0.00023172,2]
[358087387,1744701032185,-13769.8502082,0.00023173,2]
[358087388,1744701032195,-1575.91117876,0.00023899,2]
[358087389,1744701032206,-152.58057744,0.000239,4]
[358087390,1744701032216,-3000.0,0.000239,2]
[358087391,1744701032226,-241.26432673,0.000239,2]
[358087392,1744701032237,-3427.88662701,0.00023999,2]
[358087393,1744701032248,-662.17803772,0.00023999,3]
[358087394,1744701032259,-500.0,0.00023999,2]
[358087395,1744701032270,-160.0,0.00023999,2]
[358087396,1744701032281,-151.0,0.00023999,7]
[358087397,1744701032291,-151.0,0.00023999,7]
[358087398,1744701032302,-151.0,0.00023999,7]
[358087399,1744701032312,-174.827706,0.00023999,7]
[358087400,1744701032322,-151.0,0.00023999,7]
[358087401,1744701032334,-239.854975,0.00023999,7]
[358087402,1744701032344,-151.0,0.00023999,7]
[358087403,1744701032355,-239.854975,0.00023999,7]
[358087404,1744701032365,-284.776816,0.00023999,7]
[358087405,1744701032376,-151.0,0.00023999,7]
[358087406,1744701032386,-151.0,0.00023999,7]
[358087407,1744701032397,-436.908834,0.00023999,7]
[358087408,1744701032407,-436.908834,0.00023999,7]
[358087409,1744701032418,-153.516705,0.00023999,7]
[358087410,1744701032429,-168.153831,0.00023999,7]
[358087411,1744701032439,-151.0,0.00023999,7]
[358087412,1744701032450,-151.0,0.00023999,7]
[358087413,1744701032460,-151.0,0.00023999,7]
[358087414,1744701032471,-151.0,0.00023999,7]
[358087415,1744701032481,-500.0,0.00023999,2]
[358087416,1744701032492,-272.64695517,0.00023999,2]
[358087417,1744701032502,-500.0,0.00023999,2]
[358087418,1744701032513,-244.85460432,0.00023999,2]
[358087419,1744701032523,-500.0,0.00023999,2]
[358087420,1744701032533,-500.0,0.00023999,2]
[358087421,1744701032545,-500.0,0.00023999,2]
[358087422,1744701032555,-500.0,0.00023999,2]
[358087423,1744701032566,-500.0,0.00023999,2]
[358087424,1744701032577,-500.0,0.00023999,2]
[358087425,1744701032588,-300.0,0.00023999,2]
[358087426,1744701032598,-244.7183167,0.00023999,2]
[358087427,1744701032608,-500.0,0.00023999,2]
[358087428,1744701032618,-345.2428747,0.00023999,2]
[358087429,1744701032629,-500.0,0.00023999,2]
[358087430,1744701032640,-500.0,0.00023999,2]
[358087431,1744701032650,-500.0,0.00023999,2]
[358087432,1744701032662,-500.0,0.00023999,2]
[358087433,1744701032672,-500.0,0.00023999,2]
[358087434,1744701032682,-500.0,0.00023999,2]
[358087435,1744701032693,-543.86003438,0.00023999,2]
[358087436,1744701032703,-543.86003438,0.00023999,2]
[358087437,1744701032713,-543.86003438,0.00023999,2]
[358087438,1744701032725,-543.86003438,0.00023999,2]
[358087439,1744701032734,-543.86003438,0.00023999,2]
[358087440,1744701032745,-543.86003438,0.00023999,2]
[358087441,1744701032755,-543.86003438,0.00023999,2]
[358087442,1744701032766,-543.86003438,0.00023999,2]
[358087443,1744701032777,-543.86003438,0.00023999,2]
[358087444,1744701032788,-543.86003438,0.00023999,2]
[358087445,1744701032799,-543.86003438,0.00023999,2]
[358087446,1744701032809,-543.86003438,0.00023999,2]
[358087447,1744701032819,-543.86003438,0.00023999,2]
[358087448,1744701032829,-543.86003438,0.00023999,2]
[358087449,1744701032840,-543.86003438,0.00023999,2]
[358087450,1744701032853,-543.86003438,0.00023999,2]
[358087451,1744701032864,-543.86003438,0.00023999,2]
[358087452,1744701032874,-543.86003438,0.00023999,2]
[358087453,1744701032887,-543.86003438,0.00023999,2]
[358087454,1744701032898,-543.86003438,0.00023999,2]
[358087455,1744701032908,-543.86003438,0.00023999,2]
[358087456,1744701032920,-543.86003438,0.00023999,2]
[358087457,1744701032931,-543.86003438,0.00023999,2]
[358087458,1744701032941,-543.86003438,0.00023999,2]
[358087459,1744701032952,-543.86003438,0.00023999,2]
[358087460,1744701032963,-543.86003438,0.00023999,2]
[358087461,1744701032973,-543.86003438,0.00023999,2]
[358087462,1744701032984,-543.86003438,0.00023999,2]
[358087463,1744701032994,-543.86003438,0.00023999,2]
[358087464,1744701033005,-543.86003438,0.00023999,2]
[358087465,1744701033015,-543.86003438,0.00023999,2]
[358087466,1744701033027,-543.86003438,0.00023999,2]
[358087467,1744701033038,-543.86003438,0.00023999,2]
[358087468,1744701033049,-543.86003438,0.00023999,2]
[358087469,1744701033061,-543.86003438,0.00023999,2]
[358087470,1744701033072,-543.86003438,0.00023999,2]
[358087471,1744701033083,-543.86003438,0.00023999,2]
[358087472,1744701033093,-543.86003438,0.00023999,2]
[358087473,1744701033104,-543.86003438,0.00023999,2]
[358087474,1744701033115,-543.86003438,0.00023999,2]
[358087475,1744701033126,-543.86003438,0.00023999,2]
[358087476,1744701033137,-543.86003438,0.00023999,2]
[358087477,1744701033148,-543.86003438,0.00023999,2]
[358087478,1744701033162,-543.86003438,0.00023999,2]
[358087479,1744701033174,-543.86003438,0.00023999,2]
[358087480,1744701033186,-543.86003438,0.00023999,2]
[358087481,1744701033197,-543.86003438,0.00023999,2]
[358087482,1744701033209,-543.86003438,0.00023999,2]
[358087483,1744701033221,-151.0,0.00023999,7]
[358087484,1744701033233,-488.58808092,0.00023999,2]
[358087485,1744701033244,-580.01861421,0.00023999,2]
[358087486,1744701033255,-580.01861421,0.00023999,2]
[358087487,1744701033267,-580.01861421,0.00023999,2]
[358087488,1744701033279,-580.01861421,0.00023999,2]
[358087489,1744701033293,-580.01861421,0.00023999,2]
[358087490,1744701033306,-580.01861421,0.00023999,2]
[358087491,1744701033318,-580.01861421,0.00023999,2]
[358087492,1744701033330,-580.01861421,0.00023999,2]
[358087493,1744701033342,-580.01861421,0.00023999,2]
[358087494,1744701033353,-580.01861421,0.00023999,2]
[358087495,1744701033366,-580.01861421,0.00023999,2]
[358087496,1744701033378,-580.01861421,0.00023999,2]
[358087497,1744701033390,-580.01861421,0.00023999,2]
[358087498,1744701033402,-580.01861421,0.00023999,2]
[358087499,1744701033414,-580.01861421,0.00023999,2]
[358087500,1744701033426,-580.01861421,0.00023999,2]
[358087501,1744701033437,-580.01861421,0.00023999,2]
[358087502,1744701033448,-580.01861421,0.00023999,2]
[358087503,1744701033460,-580.01861421,0.00023999,2]
[358087504,1744701033471,-580.01861421,0.00023999,2]
[358087505,1744701033483,-580.01861421,0.00023999,2]
[358087506,1744701033494,-580.01861421,0.00023999,2]
[358087507,1744701033506,-580.01861421,0.00023999,2]
[358087508,1744701033518,-580.01861421,0.00023999,2]
[358087509,1744701033529,-580.01861421,0.00023999,2]
[358087510,1744701033541,-580.01861421,0.00023999,2]
[358087511,1744701033551,-580.01861421,0.00023999,2]
[358087512,1744701033563,-580.01861421,0.00023999,2]
[358087513,1744701033574,-580.01861421,0.00023999,2]
[358087514,1744701033585,-580.01861421,0.00023999,2]
[358087515,1744701033597,-580.01861421,0.00023999,2]
[358087516,1744701033608,-580.01861421,0.00023999,2]
[358087517,1744701033631,-228.077413,0.00023999,7]
[358087518,1744701033645,-228.077413,0.00023999,7]
[358087519,1744701033658,-582.70388556,0.00023999,2]
[358087520,1744701033671,-582.70388556,0.00023999,2]
[358087521,1744701033684,-582.70388556,0.00023999,2]
[358087522,1744701033697,-582.70388556,0.00023999,2]
[358087523,1744701033710,-582.70388556,0.00023999,2]
[358087524,1744701033724,-194.969828,0.00023999,7]
[358087525,1744701033737,-194.969828,0.00023999,7]
[358087526,1744701033750,-582.70388553,0.00023999,2]
[358087527,1744701033765,-151.0,0.00023999,7]
[358087528,1744701033775,-11406.21181187,0.00024,2]
[358087529,1744701033791,-1209.38998247,0.00024,2]
[358087530,1744701034437,-22503.00896754,0.00024,2]
[358087570,1744701038322,-177.59520061,0.00023999,2]
[358087571,1744701038333,-151.0,0.00023999,7]
[358087572,1744701038343,-880.16357902,0.00024,2]
[358087961,1744701465474,-163.0461855,0.00022999,2]
[358087963,1744701485994,-159.26751281,0.00022999,2]
[358087966,1744701491490,-250.0,0.00022999,2]
[358088034,1744702127324,155.5817733,0.00015,20]
[358088093,1744702232284,-1562.80570186,0.00022819,2]
[358088095,1744702232296,-641.04713627,0.00022819,2]
[358088096,1744702232308,-491.22328517,0.00022819,2]
[358088097,1744702232318,-218.58620552,0.00022887,2]
[358088098,1744702232408,-31.41379448,0.00022887,2]
[358088099,1744702232418,-302.5375744,0.0002297,2]
[358088100,1744702232428,-48.54863112,0.00023,2]
[358088101,1744702232440,-111.46924488,0.00023,2]
[358088102,1744702232449,-160.017876,0.00023115,2]
[358088103,1744702232459,-190.41762035,0.000238,2]
[358088104,1744702232469,-245.9325562,0.000239,2]
[358088106,1744702232479,-500.0,0.000239,2]
[358088108,1744702232490,-243.24136253,0.000239,2]
[358088109,1744702232499,-300.0,0.00023985,2]
[358088110,1744702232509,-300.0,0.00023985,2]
[358088111,1744702232519,-151.0,0.00023986,2]
[358088112,1744702232528,-152.46224435,0.00023986,2]
[358088113,1744702232537,-207.4,0.00023986,2]
[358088114,1744702232545,-157.0,0.00023986,2]
[358088116,1744702232554,-483.08798573,0.00023989,2]
[358088136,1744702238375,-16.91201427,0.00023989,2]
[358088138,1744702238385,-4025.86135759,0.0002399,2]
[358088152,1744702238514,-1974.13864241,0.0002399,2]
[358088154,1744702238524,-1084.48691878,0.00023996,2]
[358088156,1744702238534,-500.0,0.00023998,2]
[358088158,1744702238546,-162.38034723,0.00023999,2]
[358088160,1744702238555,-155.540983,0.00023999,7]
[358088163,1744702238565,-500.0,0.00023999,2]
[358088165,1744702238575,-193.85759075,0.00023999,2]
[358088167,1744702238585,-500.0,0.00023999,2]
[358088169,1744702238595,-500.0,0.00023999,2]
[358088171,1744702238604,-500.0,0.00023999,2]
[358088173,1744702238614,-500.0,0.00023999,2]
[358088175,1744702238624,-500.0,0.00023999,2]
[358088177,1744702238634,-500.0,0.00023999,2]
[358088179,1744702238643,-500.0,0.00023999,2]
[358088181,1744702238653,-500.0,0.00023999,2]
[358088183,1744702238663,-500.0,0.00023999,2]
[358088185,1744702238673,-500.0,0.00023999,2]
[358088187,1744702238682,-500.0,0.00023999,2]
[358088189,1744702238692,-500.0,0.00023999,2]
[358088191,1744702238702,-500.0,0.00023999,2]
[358088193,1744702238711,-357.68251819,0.00023999,2]
[358088195,1744702238720,-151.0,0.00023999,7]
[358088197,1744702238730,-151.0,0.00023999,7]
[358088199,1744702238739,-335.92908674,0.00023999,2]
[358088201,1744702238749,-500.0,0.00023999,2]
[358088203,1744702238758,-500.0,0.00023999,2]
[358088205,1744702238767,-500.0,0.00023999,2]
[358088207,1744702238777,-500.0,0.00023999,2]
[358088238,1744702239064,-500.0,0.00023999,2]
[358088241,1744702239086,-500.0,0.00023999,2]
[358088243,1744702239096,-500.0,0.00023999,2]
[358088245,1744702239105,-500.0,0.00023999,2]
[358088247,1744702239116,-500.0,0.00023999,2]
[358088249,1744702239125,-500.0,0.00023999,2]
[358088251,1744702239135,-227.38052682,0.00023999,2]
[358088253,1744702239145,-500.0,0.00023999,2]
[358088255,1744702239155,-500.0,0.00023999,2]
[358088257,1744702239164,-500.0,0.00023999,2]
[358088259,1744702239174,-500.0,0.00023999,2]
[358088261,1744702239183,-500.0,0.00023999,2]
[358088263,1744702239193,-500.0,0.00023999,2]
[358088266,1744702239209,-500.0,0.00023999,2]
[358088268,1744702239223,-151.0,0.00023999,7]
[358088270,1744702239233,-500.0,0.00023999,2]
[358088272,1744702239245,-500.0,0.00023999,2]
[358088274,1744702239260,-500.0,0.00023999,2]
[358088276,1744702239271,-500.0,0.00023999,2]
[358088278,1744702239283,-500.0,0.00023999,2]
[358088280,1744702239293,-500.0,0.00023999,2]
[358088282,1744702239303,-500.0,0.00023999,2]
[358088285,1744702239314,-60309.69931128,0.00024,2]
[358088287,1744702239323,-912.23731341,0.00024,3]
[358088289,1744702239334,-95117.31211749,0.00024,2]
[358088291,1744702239343,-3575.14985614,0.00024,2]
[358088293,1744702239353,-151.0,0.00024,7]
[358088295,1744702239362,-151.0,0.00024,7]
[358088297,1744702239372,-151.0,0.00024,7]
[358088299,1744702239383,-228.077413,0.00024,7]
[358088301,1744702239392,-228.077413,0.00024,7]
[358088303,1744702239403,-152.541535,0.00024,7]
[358088305,1744702239412,-151.0,0.00024,7]
[358088307,1744702239422,-151.0,0.00024,7]
[358088309,1744702239432,-151.0,0.00024,7]
[358088311,1744702239442,-151.0,0.00024,7]
[358088313,1744702239452,-151.0,0.00024,7]
[358088315,1744702239462,-151.0,0.00024,7]
[358088317,1744702239472,-151.0,0.00024,7]
[358088319,1744702239481,-151.0,0.00024,7]
[358088321,1744702239491,-151.820212,0.00024,7]
[358088323,1744702239500,-151.0,0.00024,7]
[358088325,1744702239510,-151.0,0.00024,7]
[358088327,1744702239519,-151.0,0.00024,7]
[358088329,1744702239529,-151.0,0.00024,7]
[358088331,1744702239538,-151.0,0.00024,7]
[358088333,1744702239548,-151.0,0.00024,7]
[358088336,1744702239561,-151.0,0.00024,7]
[358088338,1744702239572,-151.0,0.00024,7]
[358088340,1744702239582,-199.279972,0.00024,7]
[358088342,1744702239592,-151.0,0.00024,7]
[358088344,1744702239602,-151.0,0.00024,7]
[358088346,1744702239611,-151.0,0.00024,7]
[358088348,1744702239622,-151.0,0.00024,7]
[358088350,1744702239632,-151.0,0.00024,7]
[358088352,1744702239641,-151.0,0.00024,7]
[358088354,1744702239651,-154.568412,0.00024,7]
[358088356,1744702239661,-151.0,0.00024,7]
[358088358,1744702239671,-151.0,0.00024,7]
[358088360,1744702239682,-151.0,0.00024,7]
[358088361,1744702239692,-151.0,0.00024,7]
[358088362,1744702239701,-151.0,0.00024,7]
[358088363,1744702239711,-151.0,0.00024,7]
[358088364,1744702239720,-151.0,0.00024,7]
[358088365,1744702239729,-151.0,0.00024,7]
[358088366,1744702239738,-151.0,0.00024,7]
[358088368,1744702239748,-151.0,0.00024,7]
[358088369,1744702239757,-277.642007,0.00024,7]
[358088370,1744702239767,-151.0,0.00024,7]
[358088371,1744702239779,-151.0,0.00024,7]
[358088372,1744702239788,-151.0,0.00024,7]
[358088373,1744702239798,-151.0,0.00024,7]
[358088374,1744702239807,-151.0,0.00024,7]
[358088375,1744702239816,-151.0,0.00024,7]
[358088376,1744702239826,-151.0,0.00024,7]
[358088377,1744702239835,-242.95958,0.00024,7]
[358088378,1744702239845,-242.95958,0.00024,7]
[358088379,1744702239854,-242.95958,0.00024,7]
[358088380,1744702239864,-242.95958,0.00024,7]
[358088381,1744702239874,-242.95958,0.00024,7]
[358088382,1744702239884,-242.95958,0.00024,7]
[358088383,1744702239894,-151.0,0.00024,7]
[358088384,1744702239903,-151.0,0.00024,7]
[358088385,1744702239913,-151.0,0.00024,7]
[358088386,1744702239923,-151.0,0.00024,7]
[358088387,1744702239933,-151.0,0.00024,7]
[358088388,1744702239943,-151.0,0.00024,7]
[358088389,1744702239953,-175.406219,0.00024,7]
[358088390,1744702239963,-175.406219,0.00024,7]
[358088391,1744702239973,-175.406219,0.00024,7]